Cogmind - Beta 13 @@@ ROGUE MODE // 2024.03.15 @ 02:28:16 Player: Mogwok Wargfriend Result: Destroyed by H-61 Shepherd with Heavy Assault Cannon Performance ------------- Evolutions (2) 1000 Regions Visited (3) 600 Robots Destroyed (101) 505 Value Destroyed (2864) 2864 Prototype IDs (1) 20 Alien Tech Used (0) 0 Bonus (100) 100 TOTAL SCORE: 5089 Bonus ------- High Alert Combat Kills 100 Cogmind --------- Core Integrity 0/550 Matter 146/300 Energy 275/275 System Corruption 0% Temperature Cool (0) Movement Walking (125) Location -8/Materials Parts ------- > --- POWER (1) -------- Deuterium Engine > --- PROPULSION (4) --- Aluminum Leg Carbon-fiber Leg Titanium Leg Titanium Leg > --- UTILITY (4) ------ Improved Heat Sink Medium Storage Unit Hardened Medium Armor Plating Hacking Suite > --- WEAPON (2) ------- Missile Launcher > --- INVENTORY (10) --- Light Deuterium Engine Aluminum Leg Improved Heat Sink Advanced Targeting Computer Hardened Medium Armor Plating Authchip [R/Combat] Authchip [R/Combat] Particle Gun Peak State ------------ > --- POWER ------------ Deuterium Engine > --- PROPULSION ------- Improved Aluminum Leg Carbon-fiber Leg Titanium Leg Titanium Leg > --- UTILITY ---------- Improved Heat Sink Medium Storage Unit Hardened Medium Armor Plating Hacking Suite > --- WEAPON ----------- Advanced Assault Cannon Advanced Assault Cannon > --- INVENTORY -------- Deuterium Engine Heat Sink Advanced Targeting Computer Hardened Medium Armor Plating Hardened Medium Armor Plating Hardened Medium Armor Plating Authchip [R/Combat] Authchip [R/Combat] Autogun Improved Assault Rifle [Rating: 34] Favorites ----------- Power Ion Engine Engine Ion Engine Propulsion Improved Aluminum Leg Leg Improved Aluminum Leg Wheel Compact Wheel Utility Medium Storage Unit Device Heat Sink Storage Medium Storage Unit Hackware Hacking Suite Protection Hardened Medium Armor Plating Weapon Shotgun Energy Gun EM Pulse Gun Ballistic Gun Shotgun Ballistic Cannon Advanced Assault Cannon Launcher Missile Launcher Build | -11 -10 -9 -8 ------- Run | Yrd Mat Mat Mat Slots Evolved 4 | . . 2 2 Power . | . . . . Propulsion 2 | . . 1 1 Utility 2 | . . 1 1 Weapon . | . . . . Parts Attached 79 | 7 13 29 30 Power 8 | 2 1 3 2 Engine 8 | 2 1 3 2 Core . | . . . . Reactor . | . . . . Propulsion 38 | 2 7 14 15 Treads . | . . . . Leg 36 | . 7 14 15 Wheel 2 | 2 . . . Hover . | . . . . Flight . | . . . . Utility 15 | 1 1 6 7 Device 6 | . 1 4 1 Storage 2 | 1 . 1 . Processor . | . . . . Hackware 1 | . . 1 . Protection 6 | . . . 6 Artifact . | . . . . Weapon 18 | 2 4 6 6 Energy Gun 3 | 1 1 . 1 Energy Cannon . | . . . . Ballistic Gun 12 | 1 3 6 2 Ballistic Cannon 2 | . . . 2 Launcher 1 | . . . 1 Special Weapon . | . . . . Impact Weapon . | . . . . Slashing Weapon . | . . . . Piercing Weapon . | . . . . Special Melee Weapon . | . . . . Unidentified Prototypes 1 | . . 1 . Parts Lost 16 | . 1 2 13 Power 2 | . . 1 1 Propulsion 7 | . 1 1 5 Utility 2 | . . . 2 Weapon 5 | . . . 5 Highest Loss Streak 5 | . 1 1 5 To Critical Strikes . | . . . . Average Slot Usage (%) 98 | . 96 99 98 Engine 10 | . 14 11 9 Leg 31 | . 25 32 34 Device 10 | . 11 11 9 Storage 10 | . 14 11 9 Hackware 7 | . . 10 9 Protection 2 | . . . 8 Ballistic Gun 17 | . 25 21 6 Ballistic Cannon 3 | . . . 11 Naked Turns . | . . . . Heaviest Build 40 | 14 17 24 40 Greatest Support 62 | 32 32 39 62 Greatest Overweight (x) 2 | 2 1 . 1 Average Overweight (x) . | . . . . Largest Inventory Capacity 10 | 8 8 10 10 Average Capacity 9 | 6 8 9 10 Most Carried 10 | 6 8 10 10 Average Carried 8 | 3 7 9 8 Final Capacity 10 | 8 8 10 10 Final Carried 10 | 6 8 10 8 Class Distribution -------------------- 67% | Mutant 32% | Scavenger-Mutant Dominant Class ---------------- Mutant | -10/Materials Scavenger-Mutant | -9/Materials Mutant | -8/Materials Resources | -11 -10 -9 -8 ----------- Run | Yrd Mat Mat Mat Matter Collected 3155 | 236 395 1119 1405 Remotely . | . . . . Salvage Created 3543 | . 711 1639 1193 Parts 219 | . 41 106 72 Haulers Intercepted 9 | . 1 5 3 Recyclers Shooed 1 | . . . 1 Parts Field Recycled . | . . . . Retrieved Matter . | . . . . Parts Self-Destructed . | . . . . Prevented . | . . . . Kills | -11 -10 -9 -8 ------- Run | Yrd Mat Mat Mat Combat Hostiles Destroyed 68 | . 11 30 27 Guns 51 | . 11 30 10 Cannons 17 | . . . 17 Classes Destroyed 10 | . 5 3 2 Worker 6 | . . 1 5 Builder 2 | . . . 2 Hauler 9 | . 1 5 3 Recycler 5 | . 2 2 1 Operator 2 | . 1 1 . Watcher 9 | . 1 5 3 Swarmer 9 | . . 5 4 Grunt 46 | . 11 18 17 Sentry 12 | . . 7 5 Hunter 1 | . . . 1 Best Kill Streak 8 | . 4 6 8 Combat Bots Only 5 | . 3 5 5 Max Kills in Single Turn 2 | . 1 2 1 Gunslinging 1 | . . 1 . Exploded . | . . . . Melee . | . . . . Uniques/NPCs Destroyed . | . . . . Combat | -11 -10 -9 -8 -------- Run | Yrd Mat Mat Mat Hostile Shots Fired 448 | . 60 149 239 Missed 114 | . 15 43 56 Damage Taken 5054 | . 574 1309 3171 Core 867 | . 74 214 579 Absorbed by Shields . | . . . . Regen/Repaired (Parts) 285 | . . 222 63 Core Remaining (%) 72 | 100 70 46 . Volleys Fired 317 | . 51 114 152 Largest 2 | . 2 2 2 Hottest 96 | . 85 46 96 Shots Fired 583 | . 90 228 265 Gun 421 | . 90 228 103 Cannon 155 | . . . 155 Launcher 7 | . . . 7 Special . | . . . . Kinetic 550 | . 71 228 251 Thermal 19 | . 12 . 7 Explosive 7 | . . . 7 Electromagnetic 7 | . 7 . . Robot Hit Streak 14 | . 6 14 13 Robot Miss Streak 4 | . 4 4 4 Penetration Max . | . . . . Secondary Targets 6 | . . 4 2 Max Gunslinging Chain 1 | . . 1 1 Shots Hit Robots 404 | . 65 169 170 Core Hits 181 | . 33 78 70 Critical Kills 1 | . . 1 . Critical Parts Destroyed 1 | . . 1 . Critical Strikes 8 | . . 2 6 Burn 1 | . . . 1 Destroy 2 | . . 2 . Blast 5 | . . . 5 Melee Attacks . | . . . . Impact . | . . . . Slashing . | . . . . Piercing . | . . . . Sneak Attacks . | . . . . Combat Hostiles . | . . . . Follow-up Attacks . | . . . . Damage Inflicted 7212 | . 886 2473 3853 Guns 4397 | . 884 2473 1040 Cannons 2643 | . . . 2643 Explosions 158 | . . . 158 Melee . | . . . . Ramming 14 | . 2 . 12 Kinetic 6767 | . 671 2473 3623 Thermal 206 | . 146 . 60 Explosive 158 | . . . 158 Electromagnetic 67 | . 67 . . Impact . | . . . . Slashing . | . . . . Piercing . | . . . . Highest Corruption 5 | . 5 . . Average Corruption 4 | . 4 . . Corruption Purged . | . . . . Corruption Blocked . | . . . . Effects 12 | . 12 . . Message Errors 2 | . 2 . . Matter Fused 2 | . 2 . . Heat Flow Errors 4 | . 4 . . Data Loss (minor) 3 | . 3 . . Misfires 1 | . 1 . . Overload Shots . | . . . . Overflow Damage 3 | . . . 3 Projectiles 3 | . . . 3 Explosions . | . . . . Melee . | . . . . Knockbacks 14 | . . . 14 Impact . | . . . . Kinetic 13 | . . . 13 Secondary 1 | . . . 1 Self-Inflicted Damage . | . . . . Shots . | . . . . Rammed . | . . . . Targets Rammed 4 | . 1 . 3 Kicked 4 | . 1 . 3 Crushed . | . . . . Highest Temperature 332 | . 332 10 308 Average Temperature 89 | . 133 10 58 Received Heat Transfer 2349 | . 375 642 1332 Effects 6 | . 2 . 4 Shutdowns 1 | . . . 1 Interference 4 | . 2 . 2 Short Circuit 1 | . . . 1 Siege Activations . | . . . . Robots Corrupted . | . . . . Combat Hostiles . | . . . . Parts Fried . | . . . . Impact Corruptions . | . . . . Robots Melted . | . . . . Combat Hostiles . | . . . . Parts Melted 1 | . 1 . . Heat Transferred 555 | . 333 . 222 Parts Sabotaged . | . . . . Parts Stolen . | . . . . Parts Stripped . | . . . . Power Chain Reactions . | . . . . Alert | -11 -10 -9 -8 ------- Run | Yrd Mat Mat Mat Peak Influence 557 | . 229 557 447 Initial 217 | . . 7 217 Average 237 | . 80 293 275 Maximum Alert Level 2 | . 1 2 2 Low Security (%) 40 | 100 88 34 14 Level 1 42 | . 11 32 77 Level 2 17 | . . 33 8 Level 3 . | . . . . Level 4 . | . . . . Level 5 . | . . . . High Security . | . . . . Max Security . | . . . . Squads Dispatched 13 | . 3 3 7 Investigation 4 | . 2 1 1 Extermination . | . . . . Reinforcement 6 | . 1 2 3 Assault . | . . . . Garrison 3 | . . . 3 Intercept . | . . . . Searches Triggered . | . . . . Construction Impeded . | . . . . Haulers Reinforced . | . . . . Active Scanning Responses . | . . . . Cargo Convoy Interrupts . | . . . . Stealth | -11 -10 -9 -8 --------- Run | Yrd Mat Mat Mat Distress Signals 9 | . 1 5 3 Communications Jammed . | . . . . Distress Signals . | . . . . Times Spotted 107 | . 21 44 42 Peak Tracking Total 6 | . 4 6 4 Tactical Retreats 9 | . 2 5 2 Traps | -11 -10 -9 -8 ------- Run | Yrd Mat Mat Mat Traps Triggered 7 | . 5 1 1 Indirectly . | . . . . Trap Hack Attempts . | . . . . Triggered . | . . . . Disarmed . | . . . . Reprogrammed . | . . . . Reused . | . . . . Traps Extracted . | . . . . Installed . | . . . . Triggered . | . . . . Machines | -11 -10 -9 -8 ---------- Run | Yrd Mat Mat Mat Machines Disabled 4 | . . 1 3 Max in Single Turn 1 | . . 1 1 Machines Repaired . | . . . . Machines Dismantled . | . . . . Machines Sabotaged . | . . . . Overloaded Fab Kills . | . . . . Hacking | -11 -10 -9 -8 --------- Run | Yrd Mat Mat Mat Machines Accessed 25 | . 7 11 7 Terminals 16 | . 5 6 5 Fabricators . | . . . . Repair Stations 4 | . 1 2 1 Recycling Units 3 | . 1 2 . Scanalyzers 2 | . . 1 1 Garrison Access . | . . . . Total Hacks 86 | . 28 34 24 Successful 50 | . 12 21 17 Failed 35 | . 16 12 7 Catastrophic 3 | . 1 1 1 Database Lockouts 1 | . . 1 . Manual 52 | . 18 17 17 Terminals 58 | . 21 19 18 Fabricators . | . . . . Repair Stations 14 | . 3 7 4 Recycling Units 6 | . 4 2 . Scanalyzers 8 | . . 6 2 Garrison Access . | . . . . Terminal Hacks 17 | . 4 6 7 Record 2 | . 1 1 . Part Schematic 1 | . . . 1 Robot Schematic 1 | . . . 1 Robot Analysis 4 | . 1 3 . Level Access Points 2 | . . . 2 Branch Access Points 2 | . 1 1 . Alert Level 1 | . . . 1 Unreport Threat 3 | . 1 . 2 Locate Traps 1 | . . 1 . Fabricator Hacks . | . . . . Repair Station Hacks 11 | . 1 6 4 Scan Component 6 | . 1 3 2 Repair 5 | . . 3 2 Recycling Unit Hacks 5 | . 3 2 . Process 1 | . 1 . . Report Inventory 4 | . 2 2 . Scanalyzer 8 | . . 6 2 Insert Component 4 | . . 3 1 Analyze 4 | . . 3 1 Garrison Access Hacks . | . . . . Unauthorized Hacks 9 | . 4 1 4 Terminals 9 | . 4 1 4 Assimilate 6 | . 3 1 2 Operators 3 | . 1 . 2 Fabricators . | . . . . Repair Stations . | . . . . Recycling Units . | . . . . Scanalyzers . | . . . . Garrison Access . | . . . . Data Cores Recovered . | . . . . Used . | . . . . Hacking Detections 23 | . 7 9 7 Full Trace Events 3 | . 1 . 2 Feedback Events . | . . . . Feedback Blocked . | . . . . Robot Schematics Acquired 1 | . . . 1 Robots Built . | . . . . Authchips . | . . . . Time . | . . . . Total Robot Build Rating . | . . . . Part Schematics Acquired 5 | . . 3 2 Parts Built . | . . . . Authchips . | . . . . Time . | . . . . Total Part Build Rating . | . . . . Parts Repaired 5 | . . 3 2 Time 185 | . . 109 76 Parts Recycled . | . . . . Recycled Matter 18 | . 18 . . Retrieved Matter . | . . . . Retrieved Components . | . . . . Parts Scanalyzed 4 | . . 3 1 Part Schematics Acquired 4 | . . 3 1 Parts Damaged . | . . . . Bothacking | -11 -10 -9 -8 ------------ Run | Yrd Mat Mat Mat Used RIF Installer . | . . . . Robots Hacked . | . . . . Non-combat . | . . . . Combat . | . . . . Robot Hacks Applied . | . . . . Relay Couplers Released . | . . . . Fabnet Peak Effective % . | . . . . Robots Rewired . | . . . . Allies Hacked . | . . . . Hacks Repelled . | . . . . Allies | -11 -10 -9 -8 -------- Run | Yrd Mat Mat Mat Total Allies 1 | . . 1 . Largest Group 1 | . . 1 1 Highest-Rated Group 10 | . . 10 10 Highest-Rated Ally 10 | . . 10 10 Total Orders 2 | . . . 2 STAY 1 | . . . 1 FOLLOW 1 | . . . 1 Ally Attacks . | . . . . Total Damage . | . . . . Kills . | . . . . Allies Corrupted . | . . . . Allies Melted . | . . . . Intel | -11 -10 -9 -8 ------- Run | Yrd Mat Mat Mat Robot Analysis Total 4 | . 1 3 . Derelict Logs Recovered . | . . . . Drone Launches . | . . . . Drone Recoveries . | . . . . Exploration | -11 -10 -9 -8 ------------- Run | Yrd Mat Mat Mat Turns Passed 4826 | 64 1046 2100 1616 Spaces Moved 2730 | 50 697 1257 726 Core 11 | 11 . . . Treads . | . . . . Legs 2643 | . 660 1257 726 Wheels 76 | 39 37 . . Hover . | . . . . Flight . | . . . . Fastest Speed 50 | 50 100 120 120 Average Speed 124 | 96 120 120 140 Slowest Speed 190 | 150 190 120 190 Overloaded Moves . | . . . . Propulsion Burnouts . | . . . . Robots Hopped . | . . . . Cave-ins Triggered . | . . . . Exploration Rate (%) 51 | 3 82 76 43 Regions Visited 3 Branch Regions . Pre-discovered Areas . | . . . . Known Exits Taken . | . . . . Unknown Exits Taken 3 | 1 1 1 . Scrap Searched . | . . . . Spaces Dug 2 | . . . 2 Terrain Destroyed 97 | . . . 97 Melee . | . . . . Projectile 42 | . . . 42 AOE 55 | . . . 55 Terrain Rammed . | . . . . Walls Destroyed . | . . . . Machines Disabled . | . . . . Actions | -11 -10 -9 -8 --------- Run | Yrd Mat Mat Mat Total 3581 | 62 826 1630 1063 Wait 347 | . 32 191 124 Move 2727 | 49 696 1256 726 Hop . | . . . . Pick Up 43 | 6 13 13 11 Fast Attach 28 | 6 6 5 11 Attach 23 | . 3 8 12 Detach 7 | . 1 3 3 Swap 28 | 1 4 16 7 Drop 57 | . 19 24 14 Fire 317 | . 51 114 152 Melee . | . . . . Ram . | . . . . Kick 4 | . 1 . 3 Crush . | . . . . Escape Stasis . | . . . . Rewire . | . . . . Trap . | . . . . Miscellaneous . | . . . . Route ------- -11/Scrapyard -10/Materials (discovered 3 exits: *Mat x2 / *Min) -9/Materials (discovered 5 exits: *Mat x2 / *Min x2 / *Sto) -8/Materials (discovered 3 exits: *Fac x3) History --------- Turn | Location | Event 38 | -11/Scrapyard | Discovered new exit (range 15) 65 | -11/Scrapyard | Entered Materials 168 | -10/Materials | Identified exit to Mines 302 | -10/Materials | Build established: Mutant 472 | -10/Materials | Discovered new exit (range 13) 770 | -10/Materials | Discovered new exit (range 14) 1111 | -10/Materials | Entered another Materials area 1111 | -9/Materials | Evolved 2 slots: Propulsion x1, Utility x1 1186 | -9/Materials | Repaired Shotgun 1526 | -9/Materials | Identified exit to Mines 1526 | -9/Materials | Identified exit to Storage 1961 | -9/Materials | Build established: Scavenger-Mutant 2406 | -9/Materials | Discovered new exit (range 6) 2784 | -9/Materials | Repaired Imp. Assault Rifle 2812 | -9/Materials | Repaired Aluminum Leg 2998 | -9/Materials | Central database locked down 3003 | -9/Materials | Core integrity fell below 50% 3182 | -9/Materials | Discovered new exit (range 7) 3211 | -9/Materials | Entered another Materials area 3211 | -8/Materials | Accompanied by 1 ally 3211 | -8/Materials | Evolved 2 slots: Propulsion x1, Utility x1 3214 | -8/Materials | Build established: Mutant 3466 | -8/Materials | Identified exit to Factory 3899 | -8/Materials | Lost 3 parts (3n) 4214 | -8/Materials | Garrison activated, responded to threat 4261 | -8/Materials | Core integrity fell below 50% 4588 | -8/Materials | Lost 5 parts (1p1n1u2w) 4665 | -8/Materials | Repaired Titanium Leg 4703 | -8/Materials | Repaired Carbon-fiber Leg 4817 | -8/Materials | Core integrity fell below 20% 4827 | -8/Materials | Destroyed by H-61 Shepherd with Heavy Assault Cannon Last Messages --------------- 04787_ Knocked back. 04789_ Acquired 42 matter. 04789_ K-01 Serf collects debris. 04800_ Slug penetrates Atomic Centrifuge. 04800_ K-01 Serf collects debris. 04805_ Acquired Unknown Launcher. 04805_ Identified Missile Launcher. 04806_ W-25 Informer destroyed. 04806_ Knocked back. 04807_ K-01 Serf collects debris. 04813_ H-61 Shepherd calls for reinforcements. 04813_ ALERT: Hostile activity reported, dispatching reinforcements to area. 04813_ Penetrated by Slug. 04813_ Autogun destroyed. 04813_ Knocked back. 04816_ K-01 Serf collects debris. 04822_ Knocked back. 04825_ Terminal disabled. 04827_ The unstable cave ceiling collapses. Map ----- +----------------------------------------------------+ | ?????????????????????????????????????????????????? | | ?????????????????????????????????????????????????? | | ?????????????????????????????????????????????????? | | ?????????????????????????????????????????????????? | | ?????????????????????????????????????????????????? | | ?????????????????????????????????????????????????? | | ?????????????????????????????????????????????????? | | ?????????????????????????????????????????????????? | | ?????????????????????????????????????????????????? | | ?????????????????????????????????????????????????? | | ?????????????????????????????????????????????????? | | ?????????????????????????????????????????????????? | | ?????????????????????????????????????????????????? | | ?????????????????????????????????????????????????? | | ?????????????????????????????????????????????????? | | ?????????????????????????????????????????????????? | | ?????????????????????????????????????????????????? | | ?????????????????????????????????????????????????? | | ?????????????????????????????????????????????????? | | ?????????????????????????????????????????????????? | | ?????????????????????????????###?????????????????? | | ????????#??????????????????## ##????????????????? | | ??????+ #????????????###### ##???????????????? | | ??????# #????????????# """T" #?????##????????? | | ??????# #?########???# % [ # #######? | | #####?# #?# #???# %@! %#[% % | | ] #?# #?# T #???# % ! = H | | ] #?# #?# #???# """ ** | | ??# #?# #???# """ # # #####???? | | ?### ### = #???# """ """ ## ????????? | | #+### ! #[ #???# ## """ #??????????? | | ##+#################### "R" #??????????? | | % = = + " " #??????????? | | !##+#########+########## #??????????? | | ##### #!!*%% #?# #?????# [ #??????????? | | ???####+###%%*%% #?#""" #?????#= #??????????? | | ???# #%=%= #?#""" *#?????#######??????????? | | ???# # * #?#""" #??????????????????????? | | ???# # #?# #??????????????????????? | | ???# # #?# #??????????????????????? | | ???# #################??????????????????????? | | ???# #??????##??????????????????????????????? | | ???########??????????????????????????????????????? | | ?????????????????????????????????????????????????? | | ???????###########???????????????????????????????? | | ???????# #???????????????????????????????? | | ???????# """ """ #???????????????????????????????? | | ???????# """ """ #???????????########????????????? | | ???????# """ """ ##########??# [ #????????????? | | ???????# ## #??# #????????????? | +----------------------------------------------------+ Best States ------------- Heat Dissipation 45 Energy Generation 14 Energy Capacity 275 Matter Stores 300 Matter Capacity 300 Sight Range 16 Terrain Scan Density 10 Armor Coverage 225 Evasion (%) 55 Offensive Hacking 10 Authchip Count 2 Item Schematics ----------------- Shotgun | -9/Materials | Scanalyzed Imp. Aluminum Leg | -9/Materials | Scanalyzed Imp. Light Cannon | -9/Materials | Scanalyzed Imp. Assault Rifle | -8/Materials | Scanalyzed Hacking Suite | -8/Materials | Hacked Robot Schematics ------------------ B-36 Bruiser | -8/Materials | Hacked Fabricated ------------ Nothing Alien Tech Used ----------------- None Achievements -------------- None Challenges ------------ None Game ------ Seed MakeshiftArchitectDevice Manual? 0 Play Time 00:38:52 Cumulative 95.0 hours Start 2024.03.15 @ 01:41:23 End 2024.03.15 @ 02:28:16 Sessions 1 Manual Loads 0 Difficulty Rogue Special Mode None Game No. 97 Rogue 97 Adventurer 0 Explorer 0 Win Type - Total 0 Types 0/0/0/0/0/0/0/0/0 Lore% 35 Gallery% 48 Achievement% 33 Wizard Run 0 Options --------- Layout 2 ASCII 1 Keyboard 1 Movement Numpad Keybinds 0 Fullscreen 2 Font 32/TamsynBold Map View 50x44 Zoom Use 0% Tactical HUD 1 Map Filters NONE Filters NONE Steam 1 RUN: 1ad4a710-60c2-41f3-ad54-ea7c06f1f4f2